Cogmind - Beta 11 @@@ ROGUE MODE // 2022.04.20 @ 20:57:19 Player: Dytto Result: Destroyed by C-17 Slicer with Concussive RPG Performance ------------- Evolutions (2) 1000 Regions Visited (5) 1000 Robots Destroyed (34) 170 Value Destroyed (1402) 1402 Prototype IDs (5) 100 Alien Tech Used (0) 0 Bonus (294) 294 TOTAL SCORE: 3966 Bonus ------- Pacifist 200 High Alert Combat Kills 11 Follower Combat Kills 83 Cogmind --------- Core Integrity 0/550 Matter 300/300 Energy 92/100 System Corruption 4% Temperature Cool (0) Movement Core (50) Location -8/Materials Parts ------- > --- POWER (2) -------- (None) > --- PROPULSION (3) --- (None) > --- UTILITY (3) ------ (None) > --- WEAPON (3) ------- (None) > --- INVENTORY (5) ---- Particle Charger EM Shotgun Particle Gun Heavy Particle Cannon Peak State ------------ > --- POWER ------------ Improved Ion Engine Light Nuclear Core > --- PROPULSION ------- Carbon-fiber Leg Titanium Leg Titanium Leg > --- UTILITY ---------- Experimental Sensor Array Improved Targeting Computer Core Shielding > --- WEAPON ----------- Advanced Beam Cannon Improved Light Cannon Great Maul > --- INVENTORY -------- Light Ion Engine Melee Analysis Suite Particle Charger Reaction Control System Improved Datajack [Rating: 35] Favorites ----------- Power Light Ion Engine Engine Light Ion Engine Power Core Light Nuclear Core Propulsion Aluminum Leg Leg Aluminum Leg Utility Improved Targeting Computer Device Sensor Array Processor Improved Targeting Computer Protection Core Shielding Weapon Great Maul Energy Gun EM Pulse Gun Energy Cannon Advanced Beam Cannon Ballistic Gun Minigun Ballistic Cannon Improved Light Cannon Impact Weapon Great Maul Special Melee Weapon Improved Datajack Build | -11 -10 -10 -9 -9 -8 ------- Run | Scr Mat Min Mat Min Mat Slots Evolved 4 | . . . 2 . 2 Power 1 | . . . . . 1 Propulsion 1 | . . . 1 . . Utility 1 | . . . 1 . . Weapon 1 | . . . . . 1 Parts Attached 46 | 6 2 3 6 2 27 Power 8 | 1 . . . . 7 Engine 4 | 1 . . . . 3 Core 4 | . . . . . 4 Reactor . | . . . . . . Propulsion 14 | 2 . 2 1 1 8 Treads . | . . . . . . Leg 14 | 2 . 2 1 1 8 Wheel . | . . . . . . Hover . | . . . . . . Flight . | . . . . . . Utility 8 | . 2 . 3 1 2 Device 3 | . 1 . . 1 1 Storage . | . . . . . . Processor 3 | . 1 . 1 . 1 Hackware . | . . . . . . Protection 2 | . . . 2 . . Artifact . | . . . . . . Weapon 16 | 3 . 1 2 . 10 Energy Gun 6 | 2 . . . . 4 Energy Cannon 2 | . . . 1 . 1 Ballistic Gun 2 | 1 . . . . 1 Ballistic Cannon 2 | . . . 1 . 1 Launcher . | . . . . . . Special Weapon . | . . . . . . Impact Weapon 2 | . . . . . 2 Slashing Weapon . | . . . . . . Piercing Weapon . | . . . . . . Special Melee Weapon 2 | . . 1 . . 1 Unidentified Prototypes 3 | . . . 1 1 1 Corrupted Parts 1 | . . . . . 1 System Corruption 4 | . . . . . 4 Parts Lost 18 | . . . . . 18 Power 4 | . . . . . 4 Propulsion 5 | . . . . . 5 Utility 5 | . . . . . 5 Weapon 4 | . . . . . 4 Highest Loss Streak 8 | . . . . . 8 To Critical Strikes . | . . . . . . Average Slot Usage (%) 95 | . 87 99 90 99 91 Engine 10 | . 14 14 11 11 7 Core 2 | . . . . . 6 Leg 27 | . 28 27 24 33 26 Device 8 | . 7 14 11 10 3 Processor 13 | . 8 14 11 11 15 Protection 6 | . . . 11 11 7 Energy Gun 7 | . 28 14 2 . 6 Energy Cannon 3 | . . . . 11 5 Ballistic Cannon 4 | . . . 8 11 5 Impact Weapon 3 | . . . . . 8 Special Melee Weapon 5 | . . 13 10 . . Naked Turns 5 | . . . . . 5 Heaviest Build 26 | 6 7 7 13 13 26 Greatest Support 49 | 20 20 25 35 35 49 Greatest Overweight (x) 1 | . . . . . 1 Average Overweight (x) . | . . . . . . Largest Inventory Capacity 5 | 5 5 5 5 5 5 Average Capacity 5 | 5 5 5 5 5 5 Most Carried 5 | 4 4 5 5 5 5 Average Carried 4 | 2 4 4 4 5 4 Final Capacity 5 | 5 5 5 5 5 5 Final Carried 5 | 4 4 5 5 5 4 Class Distribution -------------------- 95% | Mutant 4% | Scavenger-Mutant Dominant Class ---------------- Mutant | -10/Materials Mutant | -10/Mines Mutant | -9/Materials Mutant | -9/Mines Mutant | -8/Materials Resources | -11 -10 -10 -9 -9 -8 ----------- Run | Scr Mat Min Mat Min Mat Matter Collected 778 | 180 . 130 71 43 354 Remotely . | . . . . . . Salvage Created 1313 | . . . 104 56 1153 Parts 53 | . . . 5 4 44 Haulers Intercepted . | . . . . . . Recyclers Shooed . | . . . . . . Parts Field Recycled . | . . . . . . Retrieved Matter . | . . . . . . Parts Self-Destructed . | . . . . . . Prevented . | . . . . . . Kills | -11 -10 -10 -9 -9 -8 ------- Run | Scr Mat Min Mat Min Mat Combat Hostiles Destroyed 34 | . . . 3 2 29 Melee 10 | . . . . . 10 Cannons 10 | . . . 3 2 5 Classes Destroyed 5 | . . . 1 1 3 Swarmer 4 | . . . . . 4 Cutter 1 | . . . . . 1 Grunt 20 | . . . 3 1 16 Duelist 3 | . . . . 1 2 Sentry 6 | . . . . . 6 Best Kill Streak 4 | . . . 3 2 4 Combat Bots Only 4 | . . . 3 2 4 Max Kills in Single Turn 2 | . . . 1 1 2 Gunslinging . | . . . . . . Exploded . | . . . . . . Melee 1 | . . . . . 1 Uniques/NPCs Destroyed . | . . . . . . Combat | -11 -10 -10 -9 -9 -8 -------- Run | Scr Mat Min Mat Min Mat Damage Taken 2648 | . 15 21 . . 2612 Core 569 | . 15 . . . 554 Absorbed by Shields . | . . . . . . Redirected to Shielding 51 | . . . . . 51 Core Remaining (%) 98 | 100 . 94 . 100 . Volleys Fired 51 | . . . 10 4 37 Largest 2 | . . . 1 2 2 Hottest 126 | . . . 40 107 126 Shots Fired 89 | . . . 10 8 71 Gun 27 | . . . 3 . 24 Cannon 62 | . . . 7 8 47 Launcher . | . . . . . . Special . | . . . . . . Kinetic 34 | . . . 7 4 23 Thermal 52 | . . . . 4 48 Explosive . | . . . . . . Electromagnetic 3 | . . . 3 . . Robot Hit Streak 7 | . . . 5 7 6 Robot Miss Streak 5 | . . . 5 1 4 Penetration Max . | . . . . . . Secondary Targets . | . . . . . . Shots Hit Robots 101 | . . 5 6 6 84 Core Hits 21 | . . . 3 3 15 Critical Kills 2 | . . . . . 2 Critical Parts Destroyed 10 | . . . . . 10 Critical Strikes 13 | . . . . . 13 Meltdown 2 | . . . . . 2 Blast 1 | . . . . . 1 Smash 10 | . . . . . 10 Melee Attacks 72 | . . 5 1 . 66 Impact 60 | . . . . . 60 Slashing . | . . . . . . Piercing . | . . . . . . Sneak Attacks 6 | . . 5 1 . . Combat Hostiles . | . . . . . . Follow-up Attacks . | . . . . . . Damage Inflicted 3000 | . . . 105 121 2774 Guns 237 | . . . . . 237 Cannons 884 | . . . 105 121 658 Explosions . | . . . . . . Melee 1879 | . . . . . 1879 Ramming . | . . . . . . Kinetic 526 | . . . 105 60 361 Thermal 595 | . . . . 61 534 Explosive . | . . . . . . Electromagnetic . | . . . . . . Impact 1879 | . . . . . 1879 Slashing . | . . . . . . Piercing . | . . . . . . Highest Corruption 4 | . . . . . 4 Average Corruption 4 | . . . . . 4 Corruption Purged . | . . . . . . Corruption Blocked . | . . . . . . Effects 24 | . . . . . 24 Message Errors 3 | . . . . . 3 Matter Fused 3 | . . . . . 3 Heat Flow Errors 4 | . . . . . 4 Energy Discharges 5 | . . . . . 5 Parts Rejected 1 | . . . . . 1 Data Loss (minor) 3 | . . . . . 3 Data Loss (major) 1 | . . . . . 1 Misfires 3 | . . . . . 3 Alerts 1 | . . . . . 1 Overload Shots . | . . . . . . Overflow Damage 578 | . . . . . 578 Projectiles . | . . . . . . Explosions . | . . . . . . Melee 578 | . . . . . 578 Knockbacks 12 | . . . . . 12 Impact 7 | . . . . . 7 Kinetic 5 | . . . . . 5 Secondary . | . . . . . . Self-Inflicted Damage . | . . . . . . Shots . | . . . . . . Rammed . | . . . . . . Targets Rammed . | . . . . . . Kicked . | . . . . . . Crushed . | . . . . . . Highest Temperature 294 | . . . . 72 294 Average Temperature 91 | . . . . 37 94 Received Heat Transfer 1062 | . 9 . . . 1053 Siege Activations . | . . . . . . Robots Corrupted . | . . . . . . Combat Hostiles . | . . . . . . Parts Fried 13 | . . . . . 13 Impact Corruptions 27 | . . . . . 27 Robots Melted 2 | . . . . . 2 Combat Hostiles 2 | . . . . . 2 Parts Melted 4 | . . . . . 4 Heat Transferred 1110 | . . . . 111 999 Parts Sabotaged . | . . . . . . Parts Stolen . | . . . . . . Parts Stripped . | . . . . . . Power Chain Reactions . | . . . . . . Missiles Intercepted . | . . . . . . Alert | -11 -10 -10 -9 -9 -8 ------- Run | Scr Mat Min Mat Min Mat Peak Influence 406 | . 17 37 148 78 406 Initial 7 | . . 6 . 7 . Average 95 | . 14 5 33 33 204 Maximum Alert Level 2 | . . . . . 2 Low Security (%) 79 | 100 100 100 100 100 51 Level 1 19 | . . . . . 46 Level 2 1 | . . . . . 2 Level 3 . | . . . . . . Level 4 . | . . . . . . Level 5 . | . . . . . . High Security . | . . . . . . Max Security . | . . . . . . Squads Dispatched 7 | . 1 . 3 . 3 Investigation 2 | . . . 1 . 1 Extermination . | . . . . . . Reinforcement 5 | . 1 . 2 . 2 Assault . | . . . . . . Garrison . | . . . . . . Intercept . | . . . . . . Searches Triggered . | . . . . . . Construction Impeded . | . . . . . . Haulers Reinforced . | . . . . . . Active Scanning Responses . | . . . . . . Cargo Convoy Interrupts . | . . . . . . Stealth | -11 -10 -10 -9 -9 -8 --------- Run | Scr Mat Min Mat Min Mat Distress Signals 3 | . . . 1 . 2 Communications Jammed . | . . . . . . Distress Signals . | . . . . . . Times Spotted 67 | . 2 2 12 2 49 Peak Tracking Total 7 | . 2 2 3 2 7 Tactical Retreats 6 | . . . . . 6 Traps | -11 -10 -10 -9 -9 -8 ------- Run | Scr Mat Min Mat Min Mat Traps Triggered 3 | . . 2 . . 1 Indirectly . | . . . . . . Trap Hack Attempts . | . . . . . . Triggered . | . . . . . . Disarmed . | . . . . . . Reprogrammed . | . . . . . . Reused . | . . . . . . Traps Extracted . | . . . . . . Installed . | . . . . . . Triggered . | . . . . . . Machines | -11 -10 -10 -9 -9 -8 ---------- Run | Scr Mat Min Mat Min Mat Machines Disabled 5 | . . 1 2 . 2 Max in Single Turn 1 | . . . 1 . 1 Machines Sabotaged . | . . . . . . Garrisons Compromised . | . . . . . . Overloaded Fab Kills . | . . . . . . Hacking | -11 -10 -10 -9 -9 -8 --------- Run | Scr Mat Min Mat Min Mat Machines Accessed 8 | . 1 1 4 . 2 Terminals 7 | . 1 . 4 . 2 Fabricators . | . . . . . . Repair Stations . | . . . . . . Recycling Units . | . . . . . . Scanalyzers . | . . . . . . Garrison Access . | . . . . . . Total Hacks 15 | . 1 1 8 . 5 Successful 11 | . 1 1 5 . 4 Failed 4 | . . . 3 . 1 Catastrophic . | . . . . . . Database Lockouts . | . . . . . . Manual . | . . . . . . Terminals 14 | . 1 . 8 . 5 Fabricators . | . . . . . . Repair Stations . | . . . . . . Recycling Units . | . . . . . . Scanalyzers . | . . . . . . Garrison Access . | . . . . . . Terminal Hacks 11 | . 1 1 5 . 4 Record 3 | . 1 . 1 . 1 Robot Analysis 1 | . . . . . 1 Prototype ID Bank 1 | . . . 1 . . Open Door 1 | . . 1 . . . Alert Level 2 | . . . . . 2 Unreport Threat 1 | . . . 1 . . Dispatch Records 1 | . . . 1 . . Hauler Manifests 1 | . . . 1 . . Fabricator Hacks . | . . . . . . Repair Station Hacks . | . . . . . . Recycling Unit Hacks . | . . . . . . Scanalyzer . | . . . . . . Garrison Access Hacks . | . . . . . . Unauthorized Hacks . | . . . . . . Terminals . | . . . . . . Fabricators . | . . . . . . Repair Stations . | . . . . . . Recycling Units . | . . . . . . Scanalyzers . | . . . . . . Garrison Access . | . . . . . . Data Cores Recovered . | . . . . . . Used . | . . . . . . Hacking Detections 7 | . 1 . 4 . 2 Full Trace Events . | . . . . . . Feedback Events . | . . . . . . Feedback Blocked . | . . . . . . Robot Schematics Acquired . | . . . . . . Robots Built . | . . . . . . Authchips . | . . . . . . Time . | . . . . . . Total Robot Build Rating . | . . . . . . Part Schematics Acquired . | . . . . . . Parts Built . | . . . . . . Authchips . | . . . . . . Time . | . . . . . . Total Part Build Rating . | . . . . . . Parts Repaired . | . . . . . . Time . | . . . . . . Parts Recycled . | . . . . . . Recycled Matter . | . . . . . . Retrieved Matter . | . . . . . . Retrieved Components . | . . . . . . Parts Scanalyzed . | . . . . . . Part Schematics Acquired . | . . . . . . Parts Damaged . | . . . . . . Bothacking | -11 -10 -10 -9 -9 -8 ------------ Run | Scr Mat Min Mat Min Mat Used RIF Installer . | . . . . . . Robots Hacked 4 | . . 2 1 . 1 Non-combat 3 | . . 2 1 . . Combat 1 | . . . . . 1 Robot Hacks Applied 6 | . . 4 1 . 1 parse_system 3 | . . 2 . . 1 no_distress 3 | . . 2 1 . . Relay Couplers Released . | . . . . . . Fabnet Peak Effective % . | . . . . . . Robots Rewired . | . . . . . . Allies Hacked . | . . . . . . Hacks Repelled . | . . . . . . Allies | -11 -10 -10 -9 -9 -8 -------- Run | Scr Mat Min Mat Min Mat Total Allies 2 | . . 2 . . . Largest Group 2 | . . 2 2 1 1 Highest-Rated Group 42 | . . 42 42 31 26 Highest-Rated Ally 31 | . . 31 31 31 26 Total Orders . | . . . . . . Ally Attacks 16 | . . 3 12 1 . Total Damage 279 | . . 44 213 22 . Kills 3 | . . 1 2 . . Allies Corrupted . | . . . . . . Allies Melted . | . . . . . . Intel | -11 -10 -10 -9 -9 -8 ------- Run | Scr Mat Min Mat Min Mat Robot Analysis Total 1 | . . . . . 1 Derelict Logs Recovered 4 | . . 3 . 1 . Drone Launches . | . . . . . . Drone Recoveries . | . . . . . . Exploration | -11 -10 -10 -9 -9 -8 ------------- Run | Scr Mat Min Mat Min Mat Turns Passed 4265 | 63 77 1296 508 551 1770 Spaces Moved 2846 | 53 62 1043 271 419 998 Core 30 | 17 . . . . 13 Treads . | . . . . . . Legs 2816 | 36 62 1043 271 419 985 Wheels . | . . . . . . Hover . | . . . . . . Flight . | . . . . . . Fastest Speed 50 | 50 120 120 120 120 50 Average Speed 121 | 97 120 120 120 120 124 Slowest Speed 190 | 120 120 120 120 120 190 Overloaded Moves . | . . . . . . Propulsion Burnouts . | . . . . . . Robots Hopped . | . . . . . . Cave-ins Triggered . | . . . . . . Exploration Rate (%) 44 | 4 21 98 23 65 54 Regions Visited 5 Branch Regions 2 Pre-discovered Areas 1 | . . 1 . . . Known Exits Taken 1 | . . 1 . . . Unknown Exits Taken 4 | 1 1 . 1 1 . Scrap Searched 3 | . . 2 . 1 . Spaces Dug . | . . . . . . Terrain Destroyed 1 | . . . . 1 . Melee . | . . . . . . Projectile 1 | . . . . 1 . AOE . | . . . . . . Terrain Rammed . | . . . . . . Walls Destroyed . | . . . . . . Machines Disabled . | . . . . . . Actions | -11 -10 -10 -9 -9 -8 --------- Run | Scr Mat Min Mat Min Mat Total 3460 | 62 63 1089 445 459 1342 Wait 391 | . . 26 147 33 185 Move 2841 | 52 61 1042 270 418 998 Hop . | . . . . . . Pick Up 20 | 3 . 6 4 . 7 Fast Attach 36 | 6 2 3 4 2 19 Attach 10 | . . . 2 . 8 Detach 11 | 1 . 1 2 . 7 Swap . | . . . . . . Drop 28 | . . 6 5 2 15 Fire 51 | . . . 10 4 37 Melee 72 | . . 5 1 . 66 Ram . | . . . . . . Kick . | . . . . . . Crush . | . . . . . . Escape Stasis . | . . . . . . Rewire . | . . . . . . Trap . | . . . . . . Miscellaneous . | . . . . . . Route ------- -11/Scrapyard -10/Materials -10/Mines (discovered 2 exits: *Mat x2) -9/Materials -9/Mines -8/Materials (discovered 1 exit: Fac) History --------- Turn | Location | Event 7 | -11/Scrapyard | Discovered new exit (range 16) 64 | -11/Scrapyard | Entered Materials 127 | -10/Materials | Discovered new exit (range 12) 141 | -10/Materials | Entered Mines 178 | -10/Mines | Met a Derelict who couldn't figure out how to use a Trap Extractor 288 | -10/Mines | Learned Materials terminal intel 307 | -10/Mines | Build established: Mutant 449 | -10/Mines | Identified exit to Materials 457 | -10/Mines | Discovered exit to Materials (range 15) 475 | -10/Mines | Learned location of Storage (-7) 1202 | -10/Mines | Joined a pair of Derelicts in attacking an 0b10 outpost 1437 | -10/Mines | Entered Materials 1437 | -9/Materials | Accompanied by 2 allies 1437 | -9/Materials | Evolved 2 slots: Propulsion x1, Utility x1 1438 | -9/Materials | Loaded intel: 12 terminal locations 1447 | -9/Materials | Led the pair of lost Derelicts to an unsafe place 1924 | -9/Materials | Discovered new exit (range 7) 1945 | -9/Materials | Entered Mines 1945 | -9/Mines | Accompanied by 1 ally 2387 | -9/Mines | Found a damaged Exp. Sensor Array with a note attached 2390 | -9/Mines | Found Prototype Device 2390 | -9/Mines | Identified Exp. Sensor Array 2446 | -9/Mines | Discovered new exit (range 13) 2496 | -9/Mines | Entered Materials 2496 | -8/Materials | Accompanied by 1 ally 2496 | -8/Materials | Evolved 2 slots: Power x1, Weapon x1 2497 | -8/Materials | Identified exit to Factory 3055 | -8/Materials | Lost 3 parts (1n1u1w) 4034 | -8/Materials | Core integrity fell below 50% 4055 | -8/Materials | Lost 3 parts (1p1n1u) 4259 | -8/Materials | Core integrity fell below 20% 4266 | -8/Materials | Destroyed by C-17 Slicer with Concussive RPG Last Messages --------------- 04227_ Carbon-fiber Leg destroyed. 04228_ Assault Cannon severed. 04231_ Titanium Leg destroyed. 04244_ Aluminum Leg destroyed. 04245_ Melee Analysis Suite destroyed. 04250_ Jacked C-17 Slicer... >>parse_system Reading system data... 04252_ Imp. Targeting Computer destroyed. 04253_ Hvy. Particle Gun destroyed. 04254_ Jacked C-17 Slicer... 04254_ Command string: trojan(assimilate) 04254_ No effect. 04258_ Great Maul severed. 04260_ R-06 Scavenger collects Aluminum Leg. 04261_ Imp. Datajack destroyed. 04264_ Knocked back. 04264_ R-06 Scavenger destroyed. 04264_ C-17 Slicer knocked back. 04264_ Knocked back. Map ----- +----------------------------------------------------+ | | | | | | | | | | | | | ?###??????###???????????????????????????? | | # ?? #???????????????????????????? | | # """"""" #???????????????????????????? | | # """"""" #???????????????????????????? | | # """"""" #??????????#######??????????? | | # """"""" #?????????? #??????????? | | """"""" #?????????? #??????????? | | # !!* #?????????? #??????????? | | ######+######?????????? #??######### | | [%= #?????????# """ #??# # | | #?????????# """ #??# # | | #########?? """ #### ? | | ####### #????""" # # """""? | | #???# #?????? # # """""? | | #???# #??#+####+## + """""? | | #???# #??# # """""? | | #???# #??# # """""? | | #???# #### #####! """""? | | #???# #???# """"?? | | #???# @ ##??# ?? | | ############# ##?#######?? | | ## # """ """ #####?????? | | #### !!! """ # o """ """ #?????? | | # !!! """ + """^%""" #?????? | | + !! """ # % [ #?????? | | # # ^ % ####### | | ################ ""% !%] # # | | ??????## ####### """ ==* cc # # | | ??????# % # """^ c # " # | | ####### ] + ^ # """ # | | + ]] # "T" # "" # | | ####### # """ # """ # | | ??????# % # / + "" # | | ??????# # # """ # | | ####### ! + ############ """ # | | + ] # %#??????????# """ # | | ####### # ##### #??????????# " # | | ??????########## #???# #??????????# # | | ?????????????????????# #??????????####### | | ?????????????????????# #????????????????? | | ?????????????????????# #????????????????? | | ?????????????????????# #????????????????? | | ?????????????????????# #????????????????? | | ?????????????????????? ?????????????????? | +----------------------------------------------------+ Best States ------------- Heat Dissipation 31 Energy Generation 23 Energy Capacity 325 Matter Stores 300 Matter Capacity 300 Sight Range 16 Robot Scan Range 20 Terrain Scan Density 10 Core Shielding 20 Evasion (%) 59 Targeting Accuracy 6 Melee Accuracy 5 Item Schematics ----------------- None Robot Schematics ------------------ None Fabricated ------------ Nothing Alien Tech Used ----------------- None Achievements -------------- None Challenges ------------ None Game ------ Seed ContainmentGrenadeLauncher Manual? 0 Play Time 00:31:18 Cumulative 19.8 hours Start 2022.04.20 @ 20:25:19 End 2022.04.20 @ 20:57:19 Sessions 1 Manual Loads 0 Difficulty Rogue Special Mode None Game No. 70 Rogue 34 Adventurer 36 Explorer 0 Win Type - Total 0 Types 0/0/0/0/0/0/0/0/0 Lore% 15 Gallery% 21 Achievement% 15 Wizard Run 0 Options --------- ASCII 0 Keyboard 1 Movement Numpad Keybinds 0 Fullscreen 2 Font 18/X11Bold Map View 76x50 Tactical HUD 1 Map Filters NONE Filters NONE Steam 1 RUN: 71d3221b-26c0-4d27-8656-9c57270f134d